[Event "Late-Titled-Tuesday-Blitz-March-19-2024"]
[Site "Chess.com"]
[Date "2024.03.19"]
[Round "1"]
[White "ncofre98"]
[Black "Janh4"]
[Result "1-0"]
[WhiteElo "2599"]
[BlackElo "2160"]
[TimeControl "180+1"]
[EndTime "14:06:07 PDT"]
[Termination "ncofre98 won by resignation"]

1. e4 {[%clk 0:02:57]} 1... c6 {[%clk 0:02:59.8]} 2. d4 {[%clk 0:02:56.7]} 2...
d5 {[%clk 0:02:59.8]} 3. exd5 {[%clk 0:02:57.6]} 3... cxd5 {[%clk 0:02:59.7]} 4.
c4 {[%clk 0:02:58.3]} 4... Nf6 {[%clk 0:02:59.4]} 5. Nc3 {[%clk 0:02:59]} 5...
Nc6 {[%clk 0:02:59.7]} 6. Bg5 {[%clk 0:02:59.6]} 6... e6 {[%clk 0:02:52.1]} 7.
Nf3 {[%clk 0:02:59.8]} 7... Be7 {[%clk 0:02:52.1]} 8. Bd3 {[%clk 0:02:58.2]}
8... a6 {[%clk 0:02:52.1]} 9. O-O {[%clk 0:02:58.1]} 9... O-O {[%clk 0:02:51.6]}
10. Re1 {[%clk 0:02:55.7]} 10... dxc4 {[%clk 0:02:51.2]} 11. Bxc4 {[%clk
0:02:56.6]} 11... b5 {[%clk 0:02:51.5]} 12. Bb3 {[%clk 0:02:56]} 12... Bb7
{[%clk 0:02:51.6]} 13. Qe2 {[%clk 0:02:44]} 13... Na5 {[%clk 0:02:48.6]} 14. Bc2
{[%clk 0:02:34.8]} 14... Bxf3 {[%clk 0:02:42.2]} 15. Qxf3 {[%clk 0:02:35.7]}
15... Qxd4 {[%clk 0:02:42.3]} 16. Rad1 {[%clk 0:02:28.1]} 16... Qa7 {[%clk
0:02:38.7]} 17. Qh3 {[%clk 0:02:21.6]} 17... g6 {[%clk 0:02:31]} 18. Qh4 {[%clk
0:02:20.3]} 18... b4 {[%clk 0:02:18.7]} 19. Bxf6 {[%clk 0:02:13.2]} 19... Bxf6
{[%clk 0:02:13]} 20. Qxf6 {[%clk 0:02:13.5]} 20... bxc3 {[%clk 0:02:13.4]} 21.
Qxc3 {[%clk 0:02:12.3]} 21... Qb6 {[%clk 0:02:04.6]} 22. Qf6 {[%clk 0:01:57.2]}
22... Rad8 {[%clk 0:01:49.6]} 23. h4 {[%clk 0:01:48.9]} 23... Rxd1 {[%clk
0:01:16.8]} 24. Rxd1 {[%clk 0:01:49.8]} 24... Rc8 {[%clk 0:01:10.8]} 25. h5
{[%clk 0:01:45.6]} 25... Qc5 {[%clk 0:00:39.8]} 26. hxg6 {[%clk 0:01:30.6]}
26... hxg6 {[%clk 0:00:37.7]} 27. Bxg6 {[%clk 0:01:29.5]} 27... fxg6 {[%clk
0:00:31.6]} 28. Qxg6+ {[%clk 0:01:28.4]} 28... Kf8 {[%clk 0:00:29.7]} 29. Qf6+
{[%clk 0:01:22.4]} 29... Kg8 {[%clk 0:00:25.9]} 30. Rd7 {[%clk 0:01:04.8]} 1-0

[Event "Late-Titled-Tuesday-Blitz-March-19-2024"]
[Site "Chess.com"]
[Date "2024.03.19"]
[Round "1"]
[White "AccioChess"]
[Black "Kampkatten"]
[Result "0-1"]
[WhiteElo "2493"]
[BlackElo "2842"]
[TimeControl "180+1"]
[EndTime "14:06:09 PDT"]
[Termination "Kampkatten won by resignation"]

1. e4 {[%clk 0:02:59.3]} 1... g6 {[%clk 0:02:58.9]} 2. d4 {[%clk 0:02:58.7]}
2... Nf6 {[%clk 0:02:59.7]} 3. Nc3 {[%clk 0:02:58.6]} 3... d5 {[%clk 0:03:00.1]}
4. e5 {[%clk 0:02:58.3]} 4... Ne4 {[%clk 0:03:00.6]} 5. Nxe4 {[%clk 0:02:55]}
5... dxe4 {[%clk 0:03:01.5]} 6. c3 {[%clk 0:02:55.3]} 6... c5 {[%clk 0:03:00.8]}
7. d5 {[%clk 0:02:31.7]} 7... Bg7 {[%clk 0:02:54.8]} 8. Qa4+ {[%clk 0:02:22.6]}
8... Bd7 {[%clk 0:02:44.8]} 9. Qxe4 {[%clk 0:02:21]} 9... O-O {[%clk 0:02:45.5]}
10. f4 {[%clk 0:02:19.1]} 10... e6 {[%clk 0:02:33.7]} 11. dxe6 {[%clk
0:02:12.4]} 11... Bxe6 {[%clk 0:02:31.8]} 12. Bc4 {[%clk 0:02:12.5]} 12... Bxc4
{[%clk 0:02:07.8]} 13. Qxc4 {[%clk 0:02:13.4]} 13... Qh4+ {[%clk 0:02:08.2]} 14.
g3 {[%clk 0:02:06.3]} 14... Qg4 {[%clk 0:02:08.5]} 15. Qe2 {[%clk 0:02:04.7]}
15... Qf5 {[%clk 0:02:01.1]} 16. Nf3 {[%clk 0:02:03]} 16... Nc6 {[%clk
0:02:01.6]} 17. O-O {[%clk 0:01:59.4]} 17... f6 {[%clk 0:01:56.8]} 18. exf6
{[%clk 0:01:44.5]} 18... Bxf6 {[%clk 0:01:57.7]} 19. Be3 {[%clk 0:01:44.1]}
19... Kg7 {[%clk 0:01:52.5]} 20. Rad1 {[%clk 0:01:41.7]} 20... Rfe8 {[%clk
0:01:50.4]} 21. Qf2 {[%clk 0:01:41]} 21... b6 {[%clk 0:01:47.7]} 22. Rfe1 {[%clk
0:01:00.6]} 22... Rad8 {[%clk 0:01:47.3]} 23. Ng5 {[%clk 0:00:42.4]} 23... Rxd1
{[%clk 0:01:34.2]} 24. Rxd1 {[%clk 0:00:41.8]} 24... h6 {[%clk 0:01:22.4]} 25.
Nf3 {[%clk 0:00:41.1]} 25... Qe6 {[%clk 0:01:22.9]} 26. Bc1 {[%clk 0:00:33.1]}
26... Qxa2 {[%clk 0:01:22.3]} 27. Re1 {[%clk 0:00:18.3]} 27... Rxe1+ {[%clk
0:01:17.6]} 28. Qxe1 {[%clk 0:00:18.4]} 28... Qd5 {[%clk 0:01:18.2]} 29. Kf2
{[%clk 0:00:18.2]} 29... g5 {[%clk 0:01:11.8]} 30. fxg5 {[%clk 0:00:18]} 30...
hxg5 {[%clk 0:01:12.7]} 31. h4 {[%clk 0:00:16.4]} 31... g4 {[%clk 0:01:11.5]}
32. Ng5 {[%clk 0:00:16.6]} 32... Ne5 {[%clk 0:01:12]} 33. Qe4 {[%clk 0:00:12.8]}
33... Qxe4 {[%clk 0:01:03.4]} 34. Nxe4 {[%clk 0:00:13.7]} 34... Nd3+ {[%clk
0:01:04]} 35. Ke3 {[%clk 0:00:13.5]} 35... Nxc1 {[%clk 0:01:04.9]} 0-1

[Event "Late-Titled-Tuesday-Blitz-March-19-2024"]
[Site "Chess.com"]
[Date "2024.03.19"]
[Round "1"]
[White "DenLaz"]
[Black "ExtremeLearner"]
[Result "1-0"]
[WhiteElo "3112"]
[BlackElo "2561"]
[TimeControl "180+1"]
[EndTime "14:06:10 PDT"]
[Termination "DenLaz won by resignation"]

1. d4 {[%clk 0:03:00.9]} 1... Nf6 {[%clk 0:02:59.8]} 2. c4 {[%clk 0:03:01.5]}
2... e6 {[%clk 0:03:00.4]} 3. Nf3 {[%clk 0:03:02.1]} 3... d5 {[%clk 0:03:01]} 4.
g3 {[%clk 0:03:02.8]} 4... h6 {[%clk 0:02:54.6]} 5. Bg2 {[%clk 0:03:02.8]} 5...
Bd6 {[%clk 0:02:55.2]} 6. O-O {[%clk 0:03:03.4]} 6... O-O {[%clk 0:02:54.4]} 7.
b3 {[%clk 0:03:04.1]} 7... b6 {[%clk 0:02:46.7]} 8. Bb2 {[%clk 0:03:04.2]} 8...
Bb7 {[%clk 0:02:45.6]} 9. Nc3 {[%clk 0:03:04.9]} 9... Nbd7 {[%clk 0:02:40.9]}
10. Rc1 {[%clk 0:03:05.4]} 10... Qe7 {[%clk 0:02:30.4]} 11. Nb5 {[%clk
0:02:59.6]} 11... a6 {[%clk 0:02:30.2]} 12. Nxd6 {[%clk 0:02:58.8]} 12... cxd6
{[%clk 0:02:30.8]} 13. Ba3 {[%clk 0:02:58.6]} 13... Rfd8 {[%clk 0:02:23.9]} 14.
Nd2 {[%clk 0:02:56.7]} 14... Nf8 {[%clk 0:02:16.5]} 15. Qc2 {[%clk 0:02:52.9]}
15... Rac8 {[%clk 0:02:07.7]} 16. Qb1 {[%clk 0:02:52.2]} 16... dxc4 {[%clk
0:02:01.4]} 17. Bxb7 {[%clk 0:02:49.1]} 17... Qxb7 {[%clk 0:01:59.5]} 18. Nxc4
{[%clk 0:02:49.7]} 18... Rc6 {[%clk 0:01:13.4]} 19. e4 {[%clk 0:02:28.9]} 19...
b5 {[%clk 0:01:04.8]} 20. Nxd6 {[%clk 0:02:18.5]} 20... Rdxd6 {[%clk 0:00:50.7]}
21. Bxd6 {[%clk 0:02:17.4]} 21... Rxd6 {[%clk 0:00:47.6]} 22. e5 {[%clk
0:02:17.1]} 22... Rxd4 {[%clk 0:00:44.2]} 23. exf6 {[%clk 0:02:09.1]} 23... Ng6
{[%clk 0:00:39]} 24. Qc2 {[%clk 0:02:01.7]} 24... Qf3 {[%clk 0:00:26.6]} 25. Qc6
{[%clk 0:02:00]} 25... Qxf6 {[%clk 0:00:15.4]} 26. Rfd1 {[%clk 0:02:00.3]} 26...
Rxd1+ {[%clk 0:00:07.1]} 27. Rxd1 {[%clk 0:02:01.2]} 27... Ne5 {[%clk
0:00:07.6]} 28. Qa8+ {[%clk 0:02:01.8]} 28... Kh7 {[%clk 0:00:07.8]} 29. Qe4+
{[%clk 0:02:02.7]} 29... g6 {[%clk 0:00:08.5]} 30. Kg2 {[%clk 0:02:03]} 30...
Kg7 {[%clk 0:00:08.5]} 31. Qf4 {[%clk 0:01:57.3]} 31... Qxf4 {[%clk 0:00:06]}
32. gxf4 {[%clk 0:01:58.2]} 32... Nc6 {[%clk 0:00:06.2]} 33. Rd6 {[%clk
0:01:58.5]} 33... Nb4 {[%clk 0:00:06.9]} 34. a3 {[%clk 0:01:58.4]} 34... Nd5
{[%clk 0:00:07.5]} 35. Rxa6 {[%clk 0:01:58.9]} 35... Nxf4+ {[%clk 0:00:07.4]}
36. Kf3 {[%clk 0:01:59.5]} 36... Nd5 {[%clk 0:00:07.2]} 37. a4 {[%clk
0:02:00.2]} 37... bxa4 {[%clk 0:00:06.5]} 38. bxa4 {[%clk 0:02:01.1]} 38... Kf6
{[%clk 0:00:05.1]} 39. a5 {[%clk 0:02:01.7]} 39... g5 {[%clk 0:00:06]} 40. Rc6
{[%clk 0:02:00.7]} 40... Nb4 {[%clk 0:00:06.4]} 41. Rb6 {[%clk 0:01:59.3]} 41...
Nd5 {[%clk 0:00:06.8]} 42. Rb5 {[%clk 0:01:59.9]} 42... h5 {[%clk 0:00:07.1]}
43. a6 {[%clk 0:02:00.1]} 43... g4+ {[%clk 0:00:08]} 44. Kg2 {[%clk 0:02:00.1]}
44... Nc7 {[%clk 0:00:08.9]} 45. Rb6 {[%clk 0:01:59]} 45... Nxa6 {[%clk
0:00:07.1]} 46. Rxa6 {[%clk 0:01:59.1]} 46... Kf5 {[%clk 0:00:07]} 47. Ra5+
{[%clk 0:01:59.5]} 47... Kg6 {[%clk 0:00:07]} 48. h3 {[%clk 0:02:00.2]} 48... f5
{[%clk 0:00:07.4]} 49. hxg4 {[%clk 0:02:00.6]} 49... hxg4 {[%clk 0:00:08.3]} 50.
Kg3 {[%clk 0:02:01.3]} 50... Kf6 {[%clk 0:00:08.1]} 51. Kf4 {[%clk 0:02:01.4]}
1-0

[Event "Late-Titled-Tuesday-Blitz-March-19-2024"]
[Site "Chess.com"]
[Date "2024.03.19"]
[Round "1"]
[White "Veganator13"]
[Black "marcodobrikov"]
[Result "0-1"]
[WhiteElo "2391"]
[BlackElo "2701"]
[TimeControl "180+1"]
[EndTime "14:06:10 PDT"]
[Termination "marcodobrikov won by resignation"]

1. c4 {[%clk 0:03:00.3]} 1... e6 {[%clk 0:02:57.5]} 2. g3 {[%clk 0:03:00.6]}
2... d5 {[%clk 0:02:57.4]} 3. Bg2 {[%clk 0:03:00.9]} 3... dxc4 {[%clk
0:02:57.2]} 4. Nf3 {[%clk 0:03:00.9]} 4... Nf6 {[%clk 0:02:50]} 5. O-O {[%clk
0:03:00.4]} 5... a6 {[%clk 0:02:45.7]} 6. Qc2 {[%clk 0:02:40]} 6... Nbd7 {[%clk
0:02:44.2]} 7. Qxc4 {[%clk 0:02:31.5]} 7... b5 {[%clk 0:02:44.5]} 8. Qc6 {[%clk
0:02:27.1]} 8... Rb8 {[%clk 0:02:44.6]} 9. d3 {[%clk 0:02:20.7]} 9... Bb7 {[%clk
0:02:44.7]} 10. Qc2 {[%clk 0:02:20.7]} 10... Bd6 {[%clk 0:02:41.1]} 11. Nbd2
{[%clk 0:02:14.8]} 11... O-O {[%clk 0:02:40.9]} 12. d4 {[%clk 0:02:14]} 12... c5
{[%clk 0:02:36.6]} 13. dxc5 {[%clk 0:02:03]} 13... Nxc5 {[%clk 0:02:37.5]} 14.
Ng5 {[%clk 0:01:59.1]} 14... Bxg2 {[%clk 0:02:35.7]} 15. Kxg2 {[%clk 0:01:59.5]}
15... Rc8 {[%clk 0:02:36.3]} 16. Qb1 {[%clk 0:01:58.5]} 16... Be5 {[%clk
0:02:25.1]} 17. Kg1 {[%clk 0:01:55.3]} 17... Na4 {[%clk 0:02:08.2]} 18. Nde4
{[%clk 0:01:49.6]} 18... g6 {[%clk 0:01:53.6]} 19. Nxf6+ {[%clk 0:01:48.9]}
19... Qxf6 {[%clk 0:01:48.7]} 20. Ne4 {[%clk 0:01:43.8]} 20... Qg7 {[%clk
0:01:48.9]} 21. Qd3 {[%clk 0:01:05.4]} 21... Rfd8 {[%clk 0:01:43.2]} 22. Qf3
{[%clk 0:01:01]} 22... Bxb2 {[%clk 0:01:38.9]} 23. Bxb2 {[%clk 0:00:59.5]} 23...
Nxb2 {[%clk 0:01:39.8]} 24. Nf6+ {[%clk 0:00:58.8]} 24... Kh8 {[%clk 0:01:38.3]}
25. Rfd1 {[%clk 0:00:55.3]} 25... Nc4 {[%clk 0:01:38.4]} 26. g4 {[%clk
0:00:49.4]} 26... h6 {[%clk 0:01:15.5]} 27. h4 {[%clk 0:00:49.4]} 27... g5
{[%clk 0:01:10]} 28. hxg5 {[%clk 0:00:49.6]} 28... Qxg5 {[%clk 0:01:09.4]} 29.
Kg2 {[%clk 0:00:27.2]} 29... Ne5 {[%clk 0:01:07.4]} 0-1

[Event "Late-Titled-Tuesday-Blitz-March-19-2024"]
[Site "Chess.com"]
[Date "2024.03.19"]
[Round "1"]
[White "Jahonas"]
[Black "Suleyman_Chess06"]
[Result "0-1"]
[WhiteElo "2364"]
[BlackElo "2682"]
[TimeControl "180+1"]
[EndTime "14:06:10 PDT"]
[Termination "Suleyman_Chess06 won by resignation"]

1. d4 {[%clk 0:03:00.9]} 1... d5 {[%clk 0:03:00]} 2. Nf3 {[%clk 0:03:01.1]} 2...
Nf6 {[%clk 0:02:57.1]} 3. c3 {[%clk 0:03:01.4]} 3... e6 {[%clk 0:02:57.3]} 4.
Bf4 {[%clk 0:03:01.3]} 4... Bd6 {[%clk 0:02:56.9]} 5. Bg3 {[%clk 0:03:01.5]}
5... O-O {[%clk 0:02:56.5]} 6. Nbd2 {[%clk 0:03:01.6]} 6... b6 {[%clk
0:02:56.7]} 7. e3 {[%clk 0:03:01.8]} 7... Ba6 {[%clk 0:02:57.2]} 8. Bxa6 {[%clk
0:02:57.3]} 8... Nxa6 {[%clk 0:02:58.1]} 9. Qe2 {[%clk 0:02:57]} 9... Nb8 {[%clk
0:02:57.7]} 10. e4 {[%clk 0:02:55.6]} 10... dxe4 {[%clk 0:02:56]} 11. Nxe4
{[%clk 0:02:55.8]} 11... Nxe4 {[%clk 0:02:56.9]} 12. Qxe4 {[%clk 0:02:55.5]}
12... Nd7 {[%clk 0:02:57.8]} 13. Bxd6 {[%clk 0:02:54.9]} 13... cxd6 {[%clk
0:02:58.7]} 14. O-O {[%clk 0:02:52]} 14... Nf6 {[%clk 0:02:59]} 15. Qe2 {[%clk
0:02:47.7]} 15... Qc7 {[%clk 0:02:58.9]} 16. a4 {[%clk 0:02:45.3]} 16... Rfc8
{[%clk 0:02:56.5]} 17. Rfe1 {[%clk 0:02:45.4]} 17... h6 {[%clk 0:02:50.8]} 18.
Nd2 {[%clk 0:02:44.4]} 18... a6 {[%clk 0:02:46.3]} 19. h3 {[%clk 0:02:42]} 19...
b5 {[%clk 0:02:44.1]} 20. Ne4 {[%clk 0:02:36.3]} 20... Nxe4 {[%clk 0:02:43.7]}
21. Qxe4 {[%clk 0:02:35.7]} 21... Rab8 {[%clk 0:02:44.2]} 22. axb5 {[%clk
0:02:35.1]} 22... Rxb5 {[%clk 0:02:45.1]} 23. Re2 {[%clk 0:02:27]} 23... Qb6
{[%clk 0:02:44]} 24. Ra2 {[%clk 0:02:17.4]} 24... a5 {[%clk 0:02:42.1]} 25. g3
{[%clk 0:02:16.4]} 25... d5 {[%clk 0:02:37.7]} 26. Qf4 {[%clk 0:02:14.4]} 26...
Ra8 {[%clk 0:02:36.2]} 27. h4 {[%clk 0:02:11.1]} 27... a4 {[%clk 0:02:35.6]} 28.
Kg2 {[%clk 0:02:08.9]} 28... Rb3 {[%clk 0:02:35.2]} 29. Qf3 {[%clk 0:01:59.5]}
29... Qb5 {[%clk 0:02:31.2]} 30. Rd2 {[%clk 0:01:55]} 30... Qc4 {[%clk
0:02:29.9]} 31. Qd3 {[%clk 0:01:52.6]} 31... Qc6 {[%clk 0:02:27.6]} 32. Rd1
{[%clk 0:01:48.1]} 32... Rab8 {[%clk 0:02:19.7]} 33. Rda1 {[%clk 0:01:46.9]}
33... Rxb2 {[%clk 0:02:19.7]} 34. Rxa4 {[%clk 0:01:42.8]} 34... R2b3 {[%clk
0:02:17.7]} 35. R4a3 {[%clk 0:01:35.4]} 35... g6 {[%clk 0:02:17.3]} 36. Qc2
{[%clk 0:01:32]} 36... Rb2 {[%clk 0:02:15.4]} 37. Qd3 {[%clk 0:01:31]} 37... Qb5
{[%clk 0:02:13.5]} 38. Qxb5 {[%clk 0:01:28]} 38... R8xb5 {[%clk 0:02:14.4]} 39.
Re1 {[%clk 0:01:22.8]} 39... Rc2 {[%clk 0:02:13.2]} 40. Re3 {[%clk 0:01:21.8]}
40... Rb7 {[%clk 0:02:10.8]} 41. g4 {[%clk 0:01:19.5]} 41... Rc7 {[%clk
0:02:10.3]} 42. Rf3 {[%clk 0:01:18.5]} 42... Kg7 {[%clk 0:02:10.2]} 43. g5
{[%clk 0:01:18.6]} 43... h5 {[%clk 0:02:09]} 44. Kg3 {[%clk 0:01:17.9]} 44...
Rc1 {[%clk 0:02:02.7]} 45. Kg2 {[%clk 0:01:16.8]} 45... Rb1 {[%clk 0:02:01]} 46.
Re3 {[%clk 0:01:15.9]} 46... Rbb7 {[%clk 0:01:59.9]} 47. Rf3 {[%clk 0:01:14.9]}
47... Re7 {[%clk 0:01:58.9]} 48. Re3 {[%clk 0:01:15.2]} 48... Rbc7 {[%clk
0:01:58.8]} 49. Kf3 {[%clk 0:01:15.2]} 49... Re8 {[%clk 0:01:57.1]} 50. Kg2
{[%clk 0:01:14.8]} 50... Rb8 {[%clk 0:01:57.6]} 51. Rf3 {[%clk 0:01:14.8]} 51...
Rb1 {[%clk 0:01:57.8]} 52. Re3 {[%clk 0:01:14.3]} 52... Rc1 {[%clk 0:01:58.5]}
53. Rf3 {[%clk 0:01:14.3]} 53... Re1 {[%clk 0:01:58.9]} 54. Re3 {[%clk
0:01:14.4]} 54... Rxe3 {[%clk 0:01:59.2]} 55. fxe3 {[%clk 0:01:14.8]} 55... Rb7
{[%clk 0:01:58.3]} 56. Ra2 {[%clk 0:01:14.4]} 56... Rb1 {[%clk 0:01:58.1]} 57.
Rc2 {[%clk 0:01:14.3]} 57... Re1 {[%clk 0:01:58.5]} 58. Kf2 {[%clk 0:01:13]}
58... Rh1 {[%clk 0:01:58.7]} 59. Kg3 {[%clk 0:01:13.4]} 59... Rg1+ {[%clk
0:01:59.3]} 60. Kf2 {[%clk 0:00:54.3]} 60... Rg4 {[%clk 0:01:58.9]} 61. c4
{[%clk 0:00:50.5]} 61... dxc4 {[%clk 0:01:57.9]} 62. Rxc4 {[%clk 0:00:50.4]}
62... Rxh4 {[%clk 0:01:58.4]} 63. Rc5 {[%clk 0:00:48]} 63... Rg4 {[%clk
0:01:56.3]} 64. Kf3 {[%clk 0:00:48.3]} 64... Rg1 {[%clk 0:01:56.4]} 65. e4
{[%clk 0:00:48.5]} 65... h4 {[%clk 0:01:55.6]} 66. Kf4 {[%clk 0:00:41.4]} 66...
h3 {[%clk 0:01:54.7]} 0-1

[Event "Late-Titled-Tuesday-Blitz-March-19-2024"]
[Site "Chess.com"]
[Date "2024.03.19"]
[Round "1"]
[White "NathanHoover"]
[Black "DrCeltic"]
[Result "0-1"]
[WhiteElo "1846"]
[BlackElo "2575"]
[TimeControl "180+1"]
[EndTime "14:06:13 PDT"]
[Termination "DrCeltic won by checkmate"]

1. e4 {[%clk 0:02:59.3]} 1... c5 {[%clk 0:02:59.7]} 2. b4 {[%clk 0:02:58]} 2...
b6 {[%clk 0:02:59.8]} 3. bxc5 {[%clk 0:02:57.4]} 3... bxc5 {[%clk 0:03:00.7]} 4.
Bc4 {[%clk 0:02:57.4]} 4... e6 {[%clk 0:03:00.5]} 5. Nf3 {[%clk 0:02:57]} 5...
Nf6 {[%clk 0:02:59.1]} 6. e5 {[%clk 0:02:55.9]} 6... d5 {[%clk 0:02:55.5]} 7.
exd6 {[%clk 0:02:51.5]} 7... Bxd6 {[%clk 0:02:55.3]} 8. O-O {[%clk 0:02:51.4]}
8... O-O {[%clk 0:02:55.6]} 9. Bb2 {[%clk 0:02:50.1]} 9... Bb7 {[%clk
0:02:52.5]} 10. Re1 {[%clk 0:02:48.7]} 10... Nbd7 {[%clk 0:02:52.1]} 11. d3
{[%clk 0:02:47.7]} 11... Qc7 {[%clk 0:02:51.6]} 12. h3 {[%clk 0:02:46.3]} 12...
Rad8 {[%clk 0:02:47.7]} 13. Nbd2 {[%clk 0:02:45.9]} 13... Nd5 {[%clk 0:02:44.7]}
14. Bxd5 {[%clk 0:02:41.7]} 14... Bxd5 {[%clk 0:02:44]} 15. c4 {[%clk
0:02:41.7]} 15... Bc6 {[%clk 0:02:39.6]} 16. Qc2 {[%clk 0:02:41.4]} 16... Rb8
{[%clk 0:02:28.2]} 17. Qc3 {[%clk 0:02:38.9]} 17... e5 {[%clk 0:02:24.7]} 18.
Ne4 {[%clk 0:02:36.4]} 18... f6 {[%clk 0:02:11.6]} 19. Ba3 {[%clk 0:02:30.2]}
19... Rfd8 {[%clk 0:02:04.7]} 20. Rab1 {[%clk 0:02:30]} 20... Rxb1 {[%clk
0:02:01.5]} 21. Rxb1 {[%clk 0:02:29.5]} 21... Nf8 {[%clk 0:02:00.7]} 22. Bxc5
{[%clk 0:02:11.7]} 22... Bxc5 {[%clk 0:01:56.6]} 23. Nxc5 {[%clk 0:02:11.7]}
23... Bxf3 {[%clk 0:01:53.9]} 24. Na6 {[%clk 0:02:08.7]} 24... Qd6 {[%clk
0:01:46.1]} 25. Nb4 {[%clk 0:01:54.9]} 25... Ba8 {[%clk 0:01:40.8]} 26. Qb3
{[%clk 0:01:53.5]} 26... Kh8 {[%clk 0:01:36.5]} 27. Qa4 {[%clk 0:01:50.1]} 27...
Ne6 {[%clk 0:01:32.4]} 28. Qxa7 {[%clk 0:01:48.6]} 28... Nf4 {[%clk 0:01:27.5]}
29. Rb3 {[%clk 0:01:44.3]} 29... Bxg2 {[%clk 0:01:18.4]} 30. Ra3 {[%clk
0:01:13.3]} 30... e4 {[%clk 0:01:09]} 31. c5 {[%clk 0:01:07.6]} 31... Qd4 {[%clk
0:01:03.2]} 32. Nc6 {[%clk 0:01:03.6]} 32... Qa1+ {[%clk 0:00:50.8]} 33. Kh2
{[%clk 0:01:03.4]} 33... Rg8 {[%clk 0:00:41.1]} 34. Ne7 {[%clk 0:00:50.1]} 34...
Qh1+ {[%clk 0:00:37.1]} 35. Kg3 {[%clk 0:00:47.7]} 35... Qxh3+ {[%clk
0:00:35.5]} 36. Kxf4 {[%clk 0:00:47.3]} 36... Qf3# {[%clk 0:00:35.6]} 0-1

[Event "Late-Titled-Tuesday-Blitz-March-19-2024"]
[Site "Chess.com"]
[Date "2024.03.19"]
[Round "1"]
[White "NowInChess"]
[Black "chess94cu"]
[Result "0-1"]
[WhiteElo "2280"]
[BlackElo "2633"]
[TimeControl "180+1"]
[EndTime "14:06:15 PDT"]
[Termination "chess94cu won by resignation"]

1. e4 {[%clk 0:03:00.9]} 1... d6 {[%clk 0:02:59.4]} 2. d3 {[%clk 0:03:00]} 2...
Nf6 {[%clk 0:02:57.8]} 3. g3 {[%clk 0:03:00.5]} 3... c6 {[%clk 0:02:57.4]} 4.
Bg2 {[%clk 0:03:01]} 4... g6 {[%clk 0:02:57.1]} 5. f4 {[%clk 0:03:01.1]} 5...
Bg7 {[%clk 0:02:57.4]} 6. Nf3 {[%clk 0:03:01.5]} 6... O-O {[%clk 0:02:58]} 7.
O-O {[%clk 0:03:01.2]} 7... Nbd7 {[%clk 0:02:56.7]} 8. c3 {[%clk 0:02:52.6]}
8... e5 {[%clk 0:02:57]} 9. f5 {[%clk 0:02:48.1]} 9... d5 {[%clk 0:02:54.5]} 10.
Qe2 {[%clk 0:02:39.4]} 10... Re8 {[%clk 0:02:49.1]} 11. fxg6 {[%clk 0:02:27.2]}
11... hxg6 {[%clk 0:02:47]} 12. Bg5 {[%clk 0:02:15.5]} 12... dxe4 {[%clk
0:02:42]} 13. dxe4 {[%clk 0:02:14.4]} 13... Nc5 {[%clk 0:02:42.6]} 14. Nbd2
{[%clk 0:02:10.6]} 14... Qd3 {[%clk 0:02:21]} 15. Qxd3 {[%clk 0:01:56]} 15...
Nxd3 {[%clk 0:02:21.9]} 16. Nxe5 {[%clk 0:01:55.5]} 16... Rxe5 {[%clk
0:02:21.8]} 17. Bxf6 {[%clk 0:01:54.8]} 17... Bxf6 {[%clk 0:02:22.7]} 18. Rxf6
{[%clk 0:01:54.6]} 18... Nxb2 {[%clk 0:02:23.1]} 19. Raf1 {[%clk 0:01:51.1]}
19... Re7 {[%clk 0:02:19.7]} 20. Nf3 {[%clk 0:01:45]} 20... Nc4 {[%clk
0:02:11.7]} 21. Ng5 {[%clk 0:01:36.1]} 21... Ne5 {[%clk 0:02:11.2]} 22. Nf3
{[%clk 0:01:16]} 22... Nxf3+ {[%clk 0:01:51.7]} 23. R6xf3 {[%clk 0:01:13.3]}
23... Kg7 {[%clk 0:01:52.6]} 24. R3f2 {[%clk 0:01:10.4]} 24... Bg4 {[%clk
0:01:47.5]} 25. Rb2 {[%clk 0:01:07.2]} 25... Rd8 {[%clk 0:01:42.8]} 26. Rfb1
{[%clk 0:01:05.4]} 26... b6 {[%clk 0:01:42.9]} 27. a4 {[%clk 0:00:59]} 27...
Rd1+ {[%clk 0:01:35.9]} 28. Rxd1 {[%clk 0:00:57.1]} 28... Bxd1 {[%clk
0:01:36.8]} 29. a5 {[%clk 0:00:53.3]} 29... bxa5 {[%clk 0:01:37.7]} 30. Ra2
{[%clk 0:00:40.3]} 30... a4 {[%clk 0:01:36.7]} 31. e5 {[%clk 0:00:39]} 31... Bb3
{[%clk 0:01:32.1]} 32. Ra1 {[%clk 0:00:38.1]} 32... Rxe5 {[%clk 0:01:28.7]} 33.
Bxc6 {[%clk 0:00:37.3]} 33... Rc5 {[%clk 0:01:29.3]} 34. Bxa4 {[%clk 0:00:36.7]}
34... Ra5 {[%clk 0:01:29.4]} 35. Ra3 {[%clk 0:00:25.5]} 35... Bxa4 {[%clk
0:01:29]} 36. Kf2 {[%clk 0:00:22.7]} 36... a6 {[%clk 0:01:25]} 37. Ke3 {[%clk
0:00:20.2]} 37... Re5+ {[%clk 0:01:16]} 38. Kd4 {[%clk 0:00:20.2]} 38... Rg5
{[%clk 0:01:16.2]} 39. Rxa4 {[%clk 0:00:14.4]} 39... Rg4+ {[%clk 0:01:16.1]} 0-1

[Event "Late-Titled-Tuesday-Blitz-March-19-2024"]
[Site "Chess.com"]
[Date "2024.03.19"]
[Round "1"]
[White "ilushka"]
[Black "Mikhail_Bryakin"]
[Result "0-1"]
[WhiteElo "2396"]
[BlackElo "2706"]
[TimeControl "180+1"]
[EndTime "14:06:16 PDT"]
[Termination "Mikhail_Bryakin won by resignation"]

1. Nf3 {[%clk 0:03:00.9]} 1... Nf6 {[%clk 0:02:50.5]} 2. g3 {[%clk 0:03:01.3]}
2... b6 {[%clk 0:02:48.8]} 3. Bg2 {[%clk 0:03:00.9]} 3... Bb7 {[%clk 0:02:49.2]}
4. c4 {[%clk 0:03:01.6]} 4... c5 {[%clk 0:02:48.3]} 5. O-O {[%clk 0:03:02.1]}
5... g6 {[%clk 0:02:48.1]} 6. b3 {[%clk 0:02:44.3]} 6... Bg7 {[%clk 0:02:47.6]}
7. Bb2 {[%clk 0:02:44.4]} 7... O-O {[%clk 0:02:48.2]} 8. d4 {[%clk 0:02:44.3]}
8... cxd4 {[%clk 0:02:38.1]} 9. Qxd4 {[%clk 0:02:45.2]} 9... d6 {[%clk
0:02:27.8]} 10. Nc3 {[%clk 0:02:45]} 10... Nbd7 {[%clk 0:02:27.7]} 11. Rfd1
{[%clk 0:02:44.5]} 11... Rc8 {[%clk 0:02:19.4]} 12. Ne1 {[%clk 0:02:44.4]} 12...
Bxg2 {[%clk 0:02:18]} 13. Nxg2 {[%clk 0:02:45.3]} 13... Qc7 {[%clk 0:02:17.1]}
14. Ne3 {[%clk 0:02:44.3]} 14... Qb7 {[%clk 0:02:13.8]} 15. Ncd5 {[%clk
0:02:39.1]} 15... Rfe8 {[%clk 0:02:12.3]} 16. Qd2 {[%clk 0:02:37.4]} 16... b5
{[%clk 0:02:00.4]} 17. Nxf6+ {[%clk 0:02:25.4]} 17... Nxf6 {[%clk 0:01:54.7]}
18. Rac1 {[%clk 0:02:24.7]} 18... Ne4 {[%clk 0:01:46.8]} 19. Qc2 {[%clk
0:02:17.9]} 19... Ng5 {[%clk 0:01:46.8]} 20. f3 {[%clk 0:01:08.5]} 20... Qb6
{[%clk 0:01:38.1]} 21. Rd3 {[%clk 0:00:55.2]} 21... bxc4 {[%clk 0:01:34]} 22.
Rc3 {[%clk 0:00:35.3]} 22... d5 {[%clk 0:01:19.4]} 23. Kg2 {[%clk 0:00:23.8]}
23... Red8 {[%clk 0:01:18.2]} 24. bxc4 {[%clk 0:00:16.6]} 24... Bxc3 {[%clk
0:01:14]} 25. Nxd5 {[%clk 0:00:11.4]} 25... Qxb2 {[%clk 0:01:10.6]} 26. Nxe7+
{[%clk 0:00:08.1]} 26... Kf8 {[%clk 0:01:09.8]} 27. Nxc8 {[%clk 0:00:08.5]}
27... Qxc2 {[%clk 0:01:08.3]} 28. Rxc2 {[%clk 0:00:08.7]} 28... Bd4 {[%clk
0:01:03.1]} 29. Rd2 {[%clk 0:00:04.5]} 29... Ne6 {[%clk 0:01:03.1]} 30. Nxa7
{[%clk 0:00:02.2]} 30... Bxa7 {[%clk 0:01:02.6]} 0-1